Cogmind - Beta 16 @@@ ROGUE MODE // 2025.12.07 @ 03:04:55 Player: PopcornMaze Result: Destroyed by G-47 Trooper with Particle Gun Performance ------------- Evolutions (3) 1500 Regions Visited (8) 1600 Robots Destroyed (124) 620 Value Destroyed (4778) 4778 Prototype IDs (6) 120 Alien Tech Used (0) 0 Bonus (799) 799 TOTAL SCORE: 9417 Bonus ------- High Alert Combat Kills 366 Follower Combat Kills 33 Entered Garrisons 400 Cogmind --------- Core Integrity 0/700 Matter 294/300 Energy 100/100 System Corruption 10% Temperature Cool (9) Movement Flying (32) Location -7/Garrison Parts ------- > --- POWER (2) -------- (None) > --- PROPULSION (2) --- VTOL Module VTOL Module > --- UTILITY (6) ------ (None) > --- WEAPON (3) ------- (None) > --- INVENTORY (5) ---- Aluminum Leg Relay Coupler [Cutter] (29) Improved Datajack Peak State ------------ > --- POWER ------------ Light Nuclear Core Improved Deuterium Engine > --- PROPULSION ------- Light Treads Advanced Treads > --- UTILITY ---------- Advanced Heat Sink Improved Cooling System Medium Storage Unit Improved Light Armor Plating Improved Light Armor Plating Powered Armor > --- WEAPON ----------- Cooled Pulse Rifle Cooled Pulse Rifle Cooled Pulse Rifle > --- INVENTORY -------- Nuclear Core Light Treads Light Treads Improved Light Armor Plating Relay Coupler [Cutter] Particle Gun Heavy Laser Improved Datajack [Rating: 48] Favorites ----------- Power Cooled Ion Engine Engine Cooled Ion Engine Power Core Light Nuclear Core Propulsion Light Treads Treads Light Treads Wheel Wheel Hover Unit Improved Hover Unit Flight Unit VTOL Module Utility Powered Armor Device V3-11A's Pendant Storage Medium Storage Unit Hackware Makeshift Hacking Suite Protection Powered Armor Weapon Enhanced Autogun Energy Gun Cooled Pulse Rifle Energy Cannon Beam Cannon Ballistic Gun Enhanced Autogun Ballistic Cannon Assault Cannon Build | -11 -10 -10 -10 -8 -8 -8 -7 -7 ------- Run | Yrd Mat Min Sub Mat Gar Mat Fac Gar Slots Evolved 6 | . . . . 4 . . 2 . Power 1 | . . . . . . . 1 . Propulsion . | . . . . . . . . . Utility 4 | . . . . 3 . . 1 . Weapon 1 | . . . . 1 . . . . Parts Attached 86 | 6 1 . 8 13 5 17 10 26 Power 12 | 1 1 . . 1 . 1 2 6 Engine 4 | 1 1 . . 1 . . 1 . Core 8 | . . . . . . 1 1 6 Reactor . | . . . . . . . . . Propulsion 18 | 2 . . 3 2 3 3 1 4 Treads 12 | 2 . . 1 2 3 3 1 . Leg . | . . . . . . . . . Wheel 2 | . . . 2 . . . . . Hover 2 | . . . . . . . . 2 Flight 2 | . . . . . . . . 2 Utility 25 | 1 . . 2 4 2 6 3 7 Device 10 | . . . 2 1 . 2 1 4 Storage 2 | 1 . . . 1 . . . . Processor . | . . . . . . . . . Hackware 1 | . . . . 1 . . . . Protection 12 | . . . . 1 2 4 2 3 Artifact . | . . . . . . . . . Weapon 31 | 2 . . 3 6 . 7 4 9 Energy Gun 14 | . . . . 1 . 2 4 7 Energy Cannon 4 | . . . . . . 4 . . Ballistic Gun 12 | 2 . . 3 5 . . . 2 Ballistic Cannon 1 | . . . . . . 1 . . Launcher . | . . . . . . . . . Special Weapon . | . . . . . . . . . Impact Weapon . | . . . . . . . . . Slashing Weapon . | . . . . . . . . . Piercing Weapon . | . . . . . . . . . Special Melee Weapon . | . . . . . . . . . Unidentified Prototypes 6 | . . . 1 3 . 1 1 . Parts Lost 47 | . . . 2 . 2 12 3 28 Power 9 | . . . . . . 1 . 8 Propulsion 9 | . . . 1 . 2 2 1 3 Utility 16 | . . . . . . 5 2 9 Weapon 13 | . . . 1 . . 4 . 8 Highest Loss Streak 12 | . . . 1 . 1 3 2 12 To Critical Strikes 2 | . . . . . 1 . . 1 Average Backups 7 | 2 6 7 7 8 9 8 7 5 Power 1 | . 1 2 2 1 1 . . . Propulsion 1 | 1 2 3 1 1 1 . 1 . Utility 2 | . . . . 1 4 4 2 1 Weapon 1 | . 1 2 2 2 2 . 2 1 Tool/Special . | . . . . . . . . . Unused Backups 14 | . . . 1 4 2 1 3 3 Power 4 | . . . . 3 1 . . . Propulsion 2 | . . . . 1 . . . 1 Utility 2 | . . . . . . . 1 1 Weapon 4 | . . . 1 . 1 . 2 . Tool/Special 2 | . . . . . . 1 . 1 Average Slot Usage (%) 94 | . 85 85 97 97 99 94 99 74 Engine 8 | . 14 14 14 8 9 6 3 1 Core 2 | . . . . . . 2 10 9 Treads 16 | . 28 28 14 16 17 16 14 8 Wheel 3 | . . . 13 1 . . . . Device 11 | . . . 12 16 12 5 14 12 Storage 9 | . 14 14 14 9 9 9 7 3 Hackware 3 | . . . . 8 9 5 . . Protection 11 | . . . . 9 14 23 22 16 Energy Gun 4 | . . . . . . 2 17 18 Energy Cannon 1 | . . . . . . 8 3 . Ballistic Gun 18 | . 28 28 27 25 27 6 . . Peak Build Rating 48 | 6 6 6 13 32 34 35 48 44 Average Rating 25 | 5 6 6 11 28 33 31 43 30 On Entrance 18 | . 6 6 6 13 32 34 27 44 Avg Prop Armor Cover (%) 11 | . . . . . . . . 11 Naked Turns 25 | . . . . . . . . 25 Heaviest Build 64 | 12 14 14 16 36 48 64 60 51 Greatest Support 42 | 40 40 40 40 40 40 42 42 40 Greatest Overweight (x) 2 | 2 . . . 1 1 2 1 2 Average Overweight (x) . | . . . . . . 1 1 . Largest Inventory Capacity 10 | 8 8 8 8 10 10 10 10 10 Average Capacity 8 | 7 8 8 8 9 10 10 10 7 Most Carried 10 | 4 8 7 8 10 10 10 10 8 Average Carried 7 | 2 6 7 7 8 9 8 7 5 Final Capacity 10 | 8 8 8 8 10 10 10 10 5 Final Carried 10 | 4 7 7 8 10 10 8 8 3 Class Distribution -------------------- 39% | Tank 37% | Mutant 13% | Scavenger-Tank 4% | Derelict-Tank 3% | Scientist-Tank Dominant Class ---------------- Mutant | -10/Materials Mutant | -10/Mines Mutant | -10/Subcaves Tank | -8/Materials Tank | -8/Garrison Tank | -8/Materials Scavenger-Tank | -7/Factory Scavenger-Tank | -7/Garrison Resources | -11 -10 -10 -10 -8 -8 -8 -7 -7 ----------- Run | Yrd Mat Min Sub Mat Gar Mat Fac Gar Matter Collected 3357 | 119 172 46 370 485 629 1033 190 313 Remotely . | . . . . . . . . . Salvage Created 4834 | 29 206 46 197 719 1018 1318 680 621 Parts 278 | 2 15 5 8 56 68 67 29 28 Haulers Intercepted 4 | . . . . 2 . 1 1 . Recyclers Shooed 4 | . . 1 . 1 . 1 1 . Parts Field Recycled . | . . . . . . . . . Retrieved Matter . | . . . . . . . . . Parts Self-Destructed 25 | . . . 25 . . . . . Prevented . | . . . . . . . . . Parts Restored . | . . . . . . . . . Kills | -11 -10 -10 -10 -8 -8 -8 -7 -7 ------- Run | Yrd Mat Min Sub Mat Gar Mat Fac Gar Combat Hostiles Destroyed 102 | . 6 3 4 13 20 27 13 16 Guns 85 | . 6 3 4 13 20 10 13 16 Cannons 17 | . . . . . . 17 . . Classes Destroyed 18 | 1 3 . 3 5 3 3 . . Worker 4 | . . . . 1 . 3 . . Builder 1 | . . . . . . 1 . . Tunneler 3 | 2 . . . 1 . . . . Hauler 4 | . . . . 2 . 1 1 . Recycler 3 | . . . . . . 2 1 . Operator 1 | . . . . 1 . . . . Turret 2 | . . . 2 . . . . . Watcher 4 | . 1 . . . . 1 1 1 Swarmer 28 | . 3 3 1 3 . 4 7 7 Cutter 1 | . . . . . 1 . . . Grunt 37 | . 3 . . 5 6 16 . 7 Brawler 4 | . . . . 1 . 2 . 1 Duelist 1 | . . . . . . 1 . . Sentry 15 | . . . 1 3 6 2 3 . Specialist 3 | . . . . . 3 . . . Hunter 7 | . . . . 1 1 2 2 1 Programmer 4 | . . . . . 3 . 1 . Subdweller 2 | . . . 2 . . . . . Best Kill Streak 8 | 2 3 3 3 8 3 8 7 5 Combat Bots Only 7 | . 3 3 1 5 3 6 7 5 Max Kills in Single Turn 3 | 1 2 1 1 3 1 2 3 2 Gunslinging 1 | . 1 . . . . . 1 1 Exploded . | . . . . . . . . . Melee . | . . . . . . . . . Uniques/NPCs Destroyed . | . . . . . . . . . Combat | -11 -10 -10 -10 -8 -8 -8 -7 -7 -------- Run | Yrd Mat Min Sub Mat Gar Mat Fac Gar Hostile Shots Fired 1047 | . 47 14 55 42 82 203 171 433 Missed 340 | . 17 6 20 14 25 45 65 148 Hits 707 | . 30 8 35 28 57 158 106 285 Melee 28 | . . . . . . 10 . 18 Projectile 679 | . 30 8 35 28 57 148 106 267 AOE 1 | . . . . . 1 . . . Critical Strikes 18 | . . . 1 1 3 5 . 8 Damage Taken 8970 | . 328 63 466 357 957 2493 1045 3261 Core 1165 | . 32 . 78 21 95 226 103 610 Absorbed by Shields . | . . . . . . . . . Ignored by Resistances 53 | . . . . 24 28 . . 1 Regen/Repaired (Parts) 116 | . . . . . . . 116 . Core Remaining (%) 64 | 100 . . 56 . . 37 . . Volleys Fired 353 | 7 14 10 35 33 72 110 31 41 Largest 3 | 2 2 2 2 3 3 3 3 3 Hottest 240 | 40 40 40 50 111 75 187 157 240 Shots Fired 816 | 14 28 20 61 99 198 199 91 106 Gun 678 | 14 28 20 61 99 198 73 79 106 Cannon 138 | . . . . . . 126 12 . Launcher . | . . . . . . . . . Special . | . . . . . . . . . Kinetic 564 | 14 28 20 61 88 198 141 4 10 Thermal 252 | . . . . 11 . 58 87 96 Explosive . | . . . . . . . . . Electromagnetic . | . . . . . . . . . Robot Hit Streak 38 | 6 14 4 7 6 13 16 12 38 Robot Miss Streak 5 | 1 2 2 3 3 5 4 3 5 Penetration Max . | . . . . . . . . . Secondary Targets 9 | . 1 1 . . . 1 1 5 Max Gunslinging Chain 1 | . 1 1 . . . 1 1 1 Shots Hit Robots 480 | 10 24 12 28 48 101 120 57 80 Core Hits 219 | 2 11 4 12 25 40 58 26 41 Critical Kills 1 | . 1 . . . . . . . Critical Parts Destroyed 1 | . . . . . 1 . . . Critical Strikes 7 | . 1 . . . 1 3 2 . Burn 2 | . . . . . . . 2 . Destroy 2 | . 1 . . . 1 . . . Blast 3 | . . . . . . 3 . . Melee Attacks . | . . . . . . . . . Impact . | . . . . . . . . . Slashing . | . . . . . . . . . Piercing . | . . . . . . . . . Sneak Attacks . | . . . . . . . . . Combat Hostiles . | . . . . . . . . . Follow-up Attacks . | . . . . . . . . . Damage Inflicted 9068 | 136 294 161 422 934 1719 2737 1149 1516 Guns 6764 | 136 292 161 422 934 1719 650 954 1496 Cannons 2270 | . . . . . . 2075 195 . Explosions . | . . . . . . . . . Melee . | . . . . . . . . . Ramming 34 | . 2 . . . . 12 . 20 Kinetic 5581 | 136 292 161 422 752 1719 1927 71 101 Thermal 3453 | . . . . 182 . 798 1078 1395 Explosive . | . . . . . . . . . Electromagnetic . | . . . . . . . . . Impact . | . . . . . . . . . Slashing . | . . . . . . . . . Piercing . | . . . . . . . . . Highest Corruption 10 | . . . . . 4 6 1 10 Average Corruption 4 | . . . . . 2 4 1 8 Corruption Purged . | . . . . . . . . . Corruption Blocked . | . . . . . . . . . Effects 72 | . . . . . 20 23 4 25 Message Errors 21 | . . . . . 7 10 . 4 Matter Fused 15 | . . . . . 4 4 . 7 Heat Flow Errors 7 | . . . . . 4 2 . 1 Energy Discharges 11 | . . . . . 3 . 1 7 Parts Fused 1 | . . . . . . . . 1 Data Loss (minor) 7 | . . . . . 2 . 2 3 Data Loss (major) 2 | . . . . . . 2 . . Misfires 3 | . . . . . . 2 1 . Misdirections 2 | . . . . . . . . 2 Weapon Failures 3 | . . . . . . 3 . . Overload Shots . | . . . . . . . . . Overflow Damage 6 | . . . . . . 3 3 . Projectiles 6 | . . . . . . 3 3 . Explosions . | . . . . . . . . . Melee . | . . . . . . . . . Knockbacks 19 | . . . . . . 19 . . Impact . | . . . . . . . . . Kinetic 18 | . . . . . . 18 . . Secondary 1 | . . . . . . 1 . . Self-Inflicted Damage 9 | . . . . . . . . 9 Shots . | . . . . . . . . . Rammed 5 | . 1 . . . . 1 . 3 Targets Rammed 5 | . 1 . . . . 1 . 3 Kicked . | . . . . . . . . . Crushed . | . . . . . . . . . Highest Temperature 534 | . 8 . 229 237 350 534 143 481 Average Temperature 126 | . 4 . 133 62 91 150 85 183 Received Heat Transfer 3131 | . 171 . 410 117 288 1116 144 885 Effects 20 | . . . . . 3 13 . 4 Shutdowns 5 | . . . . . . 3 . 2 Energy Bleed 1 | . . . . . . . . 1 Interference 9 | . . . . . 3 6 . . Matter Decay 1 | . . . . . . 1 . . Short Circuit 2 | . . . . . . 2 . . Damage (minor) 2 | . . . . . . 1 . 1 Siege Activations . | . . . . . . . . . Martial Activations . | . . . . . . . . . Shielding Activations . | . . . . . . . . . Robots Disrupted . | . . . . . . . . . Combat Hostiles . | . . . . . . . . . Robots Corrupted . | . . . . . . . . . Combat Hostiles . | . . . . . . . . . Parts Fried . | . . . . . . . . . Impact Corruptions . | . . . . . . . . . Robots Melted . | . . . . . . . . . Combat Hostiles . | . . . . . . . . . Parts Melted 18 | . . . . . . . 11 7 Heat Transferred 6739 | . . . . 333 . 1306 2220 2880 Parts Sabotaged . | . . . . . . . . . Parts Stolen . | . . . . . . . . . Parts Stripped . | . . . . . . . . . Power Chain Reactions . | . . . . . . . . . Alert | -11 -10 -10 -10 -8 -8 -8 -7 -7 ------- Run | Yrd Mat Min Sub Mat Gar Mat Fac Gar Maximum Alert Level 3 | . . . . . 3 2 1 1 Low Security (%) 52 | 100 100 100 . 100 22 . 76 26 Level 1 22 | . . . . . 19 31 23 73 Level 2 18 | . . . . . 32 68 . . Level 3 6 | . . . . . 25 . . . Level 4 . | . . . . . . . . . Level 5 . | . . . . . . . . . High Security . | . . . . . . . . . Max Security . | . . . . . . . . . Peak Influence 767 | 10 104 90 . 126 767 648 283 369 Initial 373 | . . 27 . . 70 373 283 134 Average 254 | . 49 29 . 34 461 483 135 246 Influence Increases 3283 | 10 198 115 127 461 717 889 376 390 Destroy 0b10 Robot/C 2060 | . 120 60 80 280 400 540 260 320 Destroy 0b10 Robot/NC 110 | 10 5 . . 35 . 40 15 5 Destroy Leader 366 | . 32 10 . 96 20 94 84 30 Allied During Kill 26 | . . . 2 24 . . . . Trap Triggered on 0b10 10 | . . . . . . 10 . . Successful Hack 63 | . 11 . . 22 12 3 15 . Disable Machine 30 | . . 30 . . . . . . Anti-Garrison Action 400 | . . . . . 250 150 . . Destroy Structure 53 | . . . . 4 20 22 2 5 Lose Combat Pursuer 165 | . 30 15 45 . 15 30 . 30 Influence Decreases 3039 | 10 127 169 144 352 59 1032 808 338 Entered New Map 885 | . . 44 9 . 39 394 341 58 Time Decay 1409 | 10 127 125 105 237 . 368 437 . Lost Part 460 | . . . 10 . 20 120 30 280 Lost Ally 60 | . . . 20 40 . . . . Purge Threat 225 | . . . . 75 . 150 . . Squads Dispatched 13 | . 3 . . 3 . 5 2 . Investigation 3 | . 2 . . . . 1 . . Extermination 1 | . . . . . . . 1 . Reinforcement 5 | . 1 . . 1 . 2 1 . Assault 2 | . . . . . . 2 . . Garrison 2 | . . . . 2 . . . . Intercept . | . . . . . . . . . Searches Triggered . | . . . . . . . . . Construction Impeded 1 | . . . . . . 1 . . Haulers Reinforced . | . . . . . . . . . Active Scanning Responses . | . . . . . . . . . Cargo Convoy Interrupts . | . . . . . . . . . Stealth | -11 -10 -10 -10 -8 -8 -8 -7 -7 --------- Run | Yrd Mat Min Sub Mat Gar Mat Fac Gar Distress Signals 4 | . 1 . . 1 . 2 . . Communications Jammed . | . . . . . . . . . Distress Signals . | . . . . . . . . . Times Spotted 162 | . 17 4 10 20 21 46 16 28 Peak Tracking Total 9 | . 6 3 3 5 3 7 5 9 Tactical Retreats 8 | . 1 1 2 . 1 1 . 2 Traps | -11 -10 -10 -10 -8 -8 -8 -7 -7 ------- Run | Yrd Mat Min Sub Mat Gar Mat Fac Gar Traps Triggered 23 | . 1 . 1 3 15 . 1 2 Indirectly . | . . . . . . . . . Trap Hack Attempts . | . . . . . . . . . Triggered . | . . . . . . . . . Disarmed . | . . . . . . . . . Reprogrammed 4 | . . . . . . 4 . . Reused 1 | . . . . . . 1 . . Traps Extracted . | . . . . . . . . . Installed . | . . . . . . . . . Triggered 1 | . . . . . . 1 . . Most Traps Carried 1 | . . . 1 . . . . . Machines | -11 -10 -10 -10 -8 -8 -8 -7 -7 ---------- Run | Yrd Mat Min Sub Mat Gar Mat Fac Gar Machines Disabled 8 | . . 2 2 . 3 1 . . Max in Single Turn 1 | . . 1 1 . 1 1 . . Garrison Access 1 | . . . . . . 1 . . Garrison Relay 2 | . . . . . 2 . . . Machines Repaired . | . . . . . . . . . Machines Dismantled . | . . . . . . . . . Machines Sabotaged . | . . . . . . . . . Overloaded Fab Kills . | . . . . . . . . . Hacking | -11 -10 -10 -10 -8 -8 -8 -7 -7 --------- Run | Yrd Mat Min Sub Mat Gar Mat Fac Gar Machines Accessed 19 | . 3 . . 7 3 3 3 . Terminals 14 | . 3 . . 4 3 3 1 . Fabricators . | . . . . . . . . . Repair Stations 1 | . . . . . . . 1 . Recycling Units 1 | . . . . 1 . . . . Scanalyzers 1 | . . . . 1 . . . . Garrison Access 2 | . . . . 1 . . 1 . Total Hacks 68 | . 10 . . 29 8 13 8 . Successful 43 | . 6 . . 23 2 6 6 . Failed 25 | . 4 . . 6 6 7 2 . Catastrophic . | . . . . . . . . . Database Lockouts . | . . . . . . . . . Manual 21 | . 7 . . 9 . 4 1 . Terminals 47 | . 10 . . 14 8 13 2 . Fabricators . | . . . . . . . . . Repair Stations 2 | . . . . . . . 2 . Recycling Units 2 | . . . . 2 . . . . Scanalyzers 10 | . . . . 10 . . . . Garrison Access 7 | . . . . 3 . . 4 . Terminal Hacks 14 | . 3 . . 5 2 3 1 . Robot Schematic 5 | . 2 . . 2 . . 1 . Robot Analysis 1 | . 1 . . . . . . . Emergency Access Points 1 | . . . . . 1 . . . Unreport Threat 3 | . . . . 2 . 1 . . Reprogram Traps 1 | . . . . . . 1 . . Dispatch Records 2 | . . . . 1 . 1 . . Patrol Navigation 1 | . . . . . 1 . . . Fabricator Hacks . | . . . . . . . . . Repair Station Hacks 2 | . . . . . . . 2 . Scan Component 1 | . . . . . . . 1 . Repair 1 | . . . . . . . 1 . Recycling Unit Hacks 2 | . . . . 2 . . . . Report Inventory 1 | . . . . 1 . . . . Retrieve Components 1 | . . . . 1 . . . . Scanalyzer 10 | . . . . 10 . . . . Insert Component 2 | . . . . 2 . . . . Analyze 3 | . . . . 3 . . . . Retrieve Study 5 | . . . . 5 . . . . Garrison Access Hacks 4 | . . . . 2 . . 2 . Unlock Access 2 | . . . . 1 . . 1 . Coupler Status 2 | . . . . 1 . . 1 . Unauthorized Hacks 11 | . 3 . . 4 . 3 1 . Terminals 11 | . 3 . . 4 . 3 1 . Botnet 11 | . 3 . . 4 . 3 1 . Fabricators . | . . . . . . . . . Repair Stations . | . . . . . . . . . Recycling Units . | . . . . . . . . . Scanalyzers . | . . . . . . . . . Garrison Access . | . . . . . . . . . Data Cores Recovered . | . . . . . . . . . Used . | . . . . . . . . . Hacking Detections 16 | . 3 . . 4 3 3 3 . Full Trace Events 2 | . 1 . . . 1 . . . Feedback Events . | . . . . . . . . . Feedback Blocked . | . . . . . . . . . Robot Schematics Acquired 5 | . 2 . . 2 . . 1 . Robots Built . | . . . . . . . . . Authchips . | . . . . . . . . . Time . | . . . . . . . . . Total Robot Build Rating . | . . . . . . . . . Part Schematics Acquired 1 | . . . . 1 . . . . Parts Built . | . . . . . . . . . Authchips . | . . . . . . . . . Time . | . . . . . . . . . Total Part Build Rating . | . . . . . . . . . Part Studies Acquired 5 | . . . . 5 . . . . Parts Repaired 1 | . . . . . . . 1 . Time 26 | . . . . . . . 26 . Parts Recycled . | . . . . . . . . . Recycled Matter . | . . . . . . . . . Retrieved Matter . | . . . . . . . . . Retrieved Components 6 | . . . . 6 . . . . Parts Scanalyzed 1 | . . . . 1 . . . . Part Schematics Acquired 1 | . . . . 1 . . . . Parts Damaged . | . . . . . . . . . Bothacking | -11 -10 -10 -10 -8 -8 -8 -7 -7 ------------ Run | Yrd Mat Min Sub Mat Gar Mat Fac Gar Used RIF Installer . | . . . . . . . . . Robots Hacked . | . . . . . . . . . Non-combat . | . . . . . . . . . Combat . | . . . . . . . . . Robot Hacks Applied . | . . . . . . . . . Relay Couplers Released 9 | . . . . . 8 1 . . Machine Destruction 9 | . . . . . 8 1 . . Fabnet Peak Effective % . | . . . . . . . . . Robots Rewired . | . . . . . . . . . Allies Hacked . | . . . . . . . . . Hacks Repelled . | . . . . . . . . . Allies | -11 -10 -10 -10 -8 -8 -8 -7 -7 -------- Run | Yrd Mat Min Sub Mat Gar Mat Fac Gar Total Allies 5 | . . . 5 . . . . . Largest Group 4 | . . . 4 4 . . . . Highest-Rated Group 76 | . . . 76 76 . . . . Highest-Rated Ally 19 | . . . 19 19 . . . . Initial Warlord ECA Mod 6 | . . . . . . 6 5 5 Total Orders . | . . . . . . . . . Ally Attacks 30 | . . . 7 23 . . . . Total Damage 451 | . . . 161 290 . . . . Kills 3 | . . . . 3 . . . . Allies Corrupted . | . . . . . . . . . Allies Melted . | . . . . . . . . . Intel | -11 -10 -10 -10 -8 -8 -8 -7 -7 ------- Run | Yrd Mat Min Sub Mat Gar Mat Fac Gar Active Infowar (turns) 2412 | . . . 288 834 1120 170 . . Optics 288 | . . . 288 . . . . . Seismic 2124 | . . . . 834 1120 170 . . Robot Analysis Total 1 | . 1 . . . . . . . Derelict Logs Recovered 3 | . . 2 1 . . . . . Drone Launches . | . . . . . . . . . Drone Recoveries . | . . . . . . . . . Exploration | -11 -10 -10 -10 -8 -8 -8 -7 -7 ------------- Run | Yrd Mat Min Sub Mat Gar Mat Fac Gar Turns Passed 8025 | 98 261 401 1950 998 1619 851 1118 729 Spaces Moved 4342 | 45 130 221 1556 561 767 257 449 356 Core 57 | 10 . . . . . . . 47 Treads 3101 | 35 130 221 541 511 767 257 449 190 Legs . | . . . . . . . . . Wheels 1065 | . . . 1015 50 . . . . Hover 11 | . . . . . . . . 11 Flight 108 | . . . . . . . . 108 Fastest Speed 32 | 50 160 160 90 90 160 152 200 32 Average Speed 152 | 145 160 160 114 154 182 205 210 131 Slowest Speed 240 | 160 160 160 160 240 200 240 212 240 Overloaded Moves . | . . . . . . . . . Propulsion Burnouts . | . . . . . . . . . Robots Hopped 1 | . . . . . . . . 1 Potential Cave-ins . | . . . . . . . . . Cave-ins Triggered . | . . . . . . . . . Exploration Rate (%) 35 | 5 24 46 76 35 63 28 10 29 Regions Visited 8 Branch Regions 2 Pre-discovered Areas . | . . . . . . . . . Known Exits Taken 2 | . . . . 1 . . 1 . Unknown Exits Taken 5 | 1 1 1 1 . . 1 . . Scrap Searched 4 | . . . 4 . . . . . Spaces Dug . | . . . . . . . . . Terrain Destroyed 17 | . . . . . . 17 . . Melee . | . . . . . . . . . Projectile 17 | . . . . . . 17 . . AOE . | . . . . . . . . . Terrain Rammed . | . . . . . . . . . Walls Destroyed . | . . . . . . . . . Machines Disabled . | . . . . . . . . . Actions | -11 -10 -10 -10 -8 -8 -8 -7 -7 --------- Run | Yrd Mat Min Sub Mat Gar Mat Fac Gar Total 5169 | 61 155 249 1670 640 908 426 552 508 Wait 266 | . 6 19 58 9 32 32 44 66 Move 4333 | 44 130 220 1555 560 766 256 448 354 Hop 1 | . . . . . . . . 1 Pick Up 50 | 4 3 . 8 11 6 5 9 4 Fast Attach 46 | 6 . . 2 7 2 5 2 22 Attach 32 | . . . 2 4 2 9 7 8 Detach 1 | . . . . . . 1 . . Swap 24 | . 1 . 4 7 1 4 6 1 Drop 35 | . 1 . 6 9 7 3 5 4 Fire 353 | 7 14 10 35 33 72 110 31 41 Melee . | . . . . . . . . . Ram 3 | . . . . . . . . 3 Kick . | . . . . . . . . . Crush 1 | . . . . . . 1 . . Escape Stasis 24 | . . . . . 20 . . 4 Rewire . | . . . . . . . . . Trap . | . . . . . . . . . Miscellaneous . | . . . . . . . . . Route ------- -11/Scrapyard -10/Materials -10/Mines (discovered 2 exits: [*Mat] / [*Sub]) -10/Subcaves (discovered 3 exits: *Mat x2 / [*Rec]) -8/Materials (discovered 2 exits: *Fac / Gar) -8/Garrison -8/Materials -7/Factory (discovered 2 exits: Sto / Gar) -7/Garrison (discovered 1 exit: [*Fac]) History --------- Turn | Location | Event 13 | -11/Scrapyard | Discovered new exit (range 16) 99 | -11/Scrapyard | Entered Materials 308 | -10/Materials | Discovered new exit (range 14) 311 | -10/Materials | Build established: Mutant 360 | -10/Materials | Entered Mines 428 | -10/Mines | Discovered new exit (range 11) 466 | -10/Mines | Discovered new exit (range 4) 564 | -10/Mines | Learned Materials stockpile data 761 | -10/Mines | Entered Subcaves 1162 | -10/Subcaves | Learned Materials interactive machine intel 1194 | -10/Subcaves | Shifting Twisted Machinery released Shrapnel Trap 1201 | -10/Subcaves | Shifting Twisted Machinery released Mak. Axe 1261 | -10/Subcaves | A swath of the cavern ceiling suddenly collapsed 1295 | -10/Subcaves | Visited triangular shrine 1305 | -10/Subcaves | Found Prototype Device 1305 | -10/Subcaves | Identified V3-11A's Pendant 1310 | -10/Subcaves | Befriended Subdweller 1724 | -10/Subcaves | Discovered new exit (range 12) 1813 | -10/Subcaves | Discovered new exit (range 13) 1910 | -10/Subcaves | Ambushed by Subdweller buried in earth 1915 | -10/Subcaves | Befriended Subdweller 2016 | -10/Subcaves | Shifting Twisted Machinery released Sub. Power Source 2098 | -10/Subcaves | Shifting Twisted Machinery released Sub. Monowheel 2305 | -10/Subcaves | Befriended Subdweller 2305 | -10/Subcaves | Befriended Subdweller 2305 | -10/Subcaves | Befriended Subdweller 2317 | -10/Subcaves | Discovered new exit (range 8) 2711 | -10/Subcaves | Entered Materials 2711 | -8/Materials | Accompanied by 4 allies 2711 | -8/Materials | Evolved 4 slots: Utility x3, Weapon x1 2713 | -8/Materials | Loaded intel: 19 interactive machine locations 2990 | -8/Materials | Discovered new exit (range 3) 3022 | -8/Materials | Build established: Derelict-Tank 3055 | -8/Materials | Lost 3 allies 3348 | -8/Materials | Build established: Tank 3528 | -8/Materials | Garrison activated, responded to threat 3708 | -8/Materials | Identified exit to Garrison 3709 | -8/Materials | Entered Garrison 3761 | -8/Garrison | Triggered checkpoint 3801 | -8/Garrison | Garrison Relay disabled 3931 | -8/Garrison | Triggered checkpoint 4055 | -8/Garrison | Triggered checkpoint 4132 | -8/Garrison | Garrison Relay disabled 4190 | -8/Garrison | Discovered new exit (range 14) 4327 | -8/Garrison | Found Powered Armor 4330 | -8/Garrison | Found Powered Armor 4333 | -8/Garrison | Found Powered Armor 4341 | -8/Garrison | Found Powered Armor 4585 | -8/Garrison | Triggered checkpoint 4727 | -8/Garrison | Triggered checkpoint 5328 | -8/Garrison | Entered Materials 5680 | -8/Materials | Discovered new exit (range 8) 5918 | -8/Materials | Core integrity fell below 50% 5988 | -8/Materials | Lost 3 parts (1p2u) 6179 | -8/Materials | Entered Factory 6179 | -7/Factory | Evolved 2 slots: Power x1, Utility x1 6180 | -7/Factory | Identified exit to Storage 6635 | -7/Factory | Repaired Lgt. Treads+ 7012 | -7/Factory | Build established: Scavenger-Tank 7053 | -7/Factory | Destroyed 7 combat bots 7295 | -7/Factory | Identified exit to Garrison 7297 | -7/Factory | Entered Garrison 7470 | -7/Garrison | System corruption reached 10% 7553 | -7/Garrison | Lost 12 parts (4p1n4u3w) 7629 | -7/Garrison | Triggered checkpoint 7658 | -7/Garrison | Lost 3 parts (1p1n1u) 7801 | -7/Garrison | Discovered new exit (range 11) 7867 | -7/Garrison | Triggered checkpoint 7909 | -7/Garrison | Released all parts (4) 7911 | -7/Garrison | Core integrity fell below 50% 7938 | -7/Garrison | Lost 10 parts (2p1n4u3w) 7940 | -7/Garrison | Released all parts (5) 7950 | -7/Garrison | Core integrity fell below 20% 8011 | -7/Garrison | Triggered checkpoint 8025 | -7/Garrison | Lost 3 parts (1p2w) 8026 | -7/Garrison | Destroyed by G-47 Trooper with Particle Gun Last Messages --------------- 07953_ Acquired VTOL Module. 07955_ Acquired Lgt. Nuclear Core+. 07956_ System corrupted: Matter fused (-9). 07957_ Acquired 26 matter. 07962_ Acquired VTOL Module. 07964_ Acquired Lgt. Nuclear Core+. 07967_ Acquired Gauss Rifle. 07970_ Acquired Assault Rifle. 07971_ Acquired 16 matter. 07972_ System corrupted: Matter fused (-7). 07981_ Lgt. Nuclear Core+ severed. 07983_ Lgt. Nuclear Core+ destroyed. 07985_ Acquired Particle Gun. 07986_ Gauss Rifle severed. 07993_ Particle Gun destroyed. 07994_ Assault Rifle destroyed. 07996_ Acquired 74 matter. 07997_ Acquired 33 matter. 08006_ System corrupted: Component data lost. 08021_ System corrupted: Matter fused (-6). Map ----- +----------------------------------------------------+ | ???????????????????????????????????# | | ???????????????????????????????????# | | ???????????????????????????????????# | | ???????????????????????????????????### ## ## | | ?????????????????????????????????????# ## ## | | ?????????????????????????????????????# | | ?????????????????????????????????????# | | ?????????????????????????????????????#%= | | ?????????????????????????????????????## %## ### | | ???????????????????????????????????#??# =#? #?? | | ???????????????????????????????????# ##= #?#####?? | | ????????????????????????????????????? "* #???????? | | ??????????????????????????????????????#[%#???????? | | ??????????????????????????????????????#[%#???????? | | ??????????????????????????????????????# #???????? | | ???????????????????????#############+## #???????? | | ???????????????????????# = %#???????? | | ???????????????????????# =%%= #???????? | | ???????????????????????# ################???????? | | ???????????????????????# #??????????????????????? | | ???????????????????????# #??????????????????????? | | ???????????????????????# #??????????????????????? | | ???????????????????????# h??????????????????????? | | ???????????????????????# #??????????????????????? | | ??????????????########## #??????????????????????? | | ??????????????# l@#??????????????????????? | | ??????????????# g #??????????????????????? | | ??????????????# ##########??????????????????????? | | ??????????????# #???????????????????????????????? | | ??????????????# #???????????????????????????????? | | ??????????????# #???????????????????????????????? | | ??????????????# #???????????????????????????????? | | ??????????????# #?????????"#????????????????????? | | ?????########## ####### ##????????????????????? | | ?????# #????????????????????? | | ?????# #????????????????????? | | ?????# ######## ## ##T####????????????????????? | | ?????# #??????# #? #??????????????????????????? | | ?????# #??????# #??###??????????????????????????? | | ??#### #?????## ##??????????????????????????????? | | ??# #?????# #??????????????????????????????? | | ??# #?????#" "#??????????????????????????????? | | ??# #?????#" "#??????????????????????????????? | | ??#######?????#" "#??????????????????????????????? | | ??????????????#"""#??????????????????????????????? | | ??????????????#####??????????????????????????????? | | ?????????????????????????????????????????????????? | | ?????????????????????????????????????????????????? | | ?????????????????????????????????????????????????? | | ?????????????????????????????????????????????????? | +----------------------------------------------------+ Best States ------------- Heat Dissipation 80 Energy Generation 26 Energy Capacity 350 Matter Stores 300 Matter Capacity 300 Sight Range 21 Terrain Scan Density 10 Armor Coverage 1025 Resistance: KI 20 Evasion (%) 63 Recoil Reduction 2 Offensive Hacking 11 Item Schematics ----------------- Hrd. Medium Armor Plating | -8/Materials | Scanalyzed Robot Schematics ------------------ M-13 Machinist | -10/Materials | Hacked G-34 Mercenary | -10/Materials | Hacked M-28 Smith | -8/Materials | Hacked G-47 Trooper | -8/Materials | Hacked S-27 Virus | -7/Factory | Hacked Fabricated ------------ Nothing Repaired ---------- Lgt. Treads | 17% | -7/Factory Studied --------- Nuclear Core | -8/Materials | Hacked Assault Cannon | -8/Materials | Hacked Mni. Grenade Launcher | -8/Materials | Hacked Lgt. Nuclear Core | -8/Materials | Hacked Lgt. Treads | -8/Materials | Hacked Alien Tech Used ----------------- None Achievements -------------- Bumper Bots Do Not Disturb SUBSUB Challenges ------------ None Game ------ Seed EncryptedRagnarokArticulator Manual? 0 Play Time 01:09:55 Cumulative 7.7 hours Start 2025.12.07 @ 01:57:49 End 2025.12.07 @ 03:04:55 Sessions 1 Manual Loads 0 Difficulty Rogue Special Mode None Game No. 7 Rogue 7 Adventurer 0 Explorer 0 Win Type - Total 0 Types 0/0/0/0/0/0/0/0/0/0 Lore% 1 Gallery% 12 Achievement% 14 Wizard Run 0 Options --------- Layout 1 ASCII 0 Keyboard 0 Movement Numpad Keybinds 0 Fullscreen 1 Font 32/SmallcapsGlow Map View 50x35 Zoom Use 0% Tactical HUD 1 Map Filters NONE Filters NONE Steam 1 RUN: 5b70f0fd-262c-4a6e-bc24-40d9ad75b574